[Event "34th MPL National U14G-ch 2022"]
[Site "Ahmedabad"]
[Date "2022.05.09"]
[Round "1.8"]
[White "Saanvi Agarwal"]
[Black "Dakshita Kumawat"]
[Result "0-1"]
[ECO "C01"]
[WhiteElo "1176"]
[BlackElo "1575"]
[Annotator "NA RC COMBH"]
[PlyCount "106"]
[EventDate "2022.05.09"]
[EventType "swiss"]
[EventCountry "IND"]
[SourceTitle "playchess.com"]
[Source "ChessBase"]
[SourceQuality "1"]
[TimeControl "5400+30"]

1. e4 {[%emt 0:00:02]} e6 {[%emt 0:00:19]} 2. d4 {[%emt 0:00:07]} d5 {[%emt 1:31:11]} 3. exd5 {[%emt 0:00:10]} exd5 {[%emt 0:00:00]} 4. c4 {[%emt 0:00:24]} Nf6 {[%emt 0:00:00]} 5. Nc3 {[%emt 0:00:19]} Bb4 {[%emt 0:00:00]} 6. Bg5 {[%emt 0:02:29]} O-O {[%emt 0:00:00]} 7. Be2 {[%emt 0:02:54]} Re8 {[%emt 0:00:00]} 8. Nf3 {[%emt 0:04:23]} dxc4 {[%emt 0:00:00]} 9. O-O {[%emt 0:00:40]} Be6 {[%emt 0:00:00]} 10. Bxf6 {[%emt 0:04:36]} Qxf6 {[%emt 0:00:00]} 11. Qa4 {[%emt 0:05:01]} Qe7 {[%emt 0:00:00]} 12. Bxc4 {[%emt 0:08:29]} Bxc3 {[%emt 0:00:00]} 13. bxc3 {[%emt 0:00:33]} Nd7 {[%emt 0:00:00]} 14. Bxe6 {[%emt 0:01:52]} Qxe6 {[%emt 0:00:00]} 15. Rfe1 {[%emt 0:03:46]} Nb6 {[%emt 0:00:00]} 16. Qb3 {[%emt 0:04:17]} Qxb3 {[%emt 0:00:00]} 17. axb3 {[%emt 0:00:09]} Rxe1+ {[%emt 0:00:00]} 18. Rxe1 {[%emt 0:00:13]} Kf8 {[%emt 0:00:00]} 19. Re5 {[%emt 0:08:45]} a5 {[%emt 0:00:00]} 20. g3 {[%emt 0:04:52]} c6 {[%emt 0:00:00]} 21. Re1 {[%emt 0:05:23]} f6 {[%emt 0:00:00]} 22. Nd2 {[%emt 0:02:52]} Nd5 {[%emt 0:00:00]} 23. Ne4 {[%emt 0:01:39]} b5 {[%emt 0:00:00]} 24. c4 {[%emt 0:10:28]} Ne7 {[%emt 0:00:00]} 25. cxb5 {[%emt 0:04:43]} cxb5 {[%emt 0:00:00]} 26. Nd6 {[%emt 0:00:35]} Nc6 {[%emt 0:00:00]} 27. Nxb5 {[%emt 0:03:21]} Rb8 {[%emt 0:00:00]} 28. Nd6 {[%emt 0:00:44]} Nxd4 {[%emt 0:00:00]} 29. Rb1 {[%emt 0:05:44]} Nxb3 {[%emt 0:00:00]} 30. Ne4 {[%emt 0:02:36]} Rb4 {[%emt 0:00:00]} 31. Nc3 {[%emt 0:01:15]} Ke8 {[%emt 0:00:00]} 32. f4 {[%emt 0:03:33]} Kd7 {[%emt 0:00:00]} 33. Kf2 {[%emt 0:01:54]} Kc6 {[%emt 0:00:00]} 34. Rb2 {[%emt 0:02:27]} Kc5 {[%emt 0:00:00]} 35. Ke3 {[%emt 0:03:31]} Rb7 {[%emt 0:00:00]} 36. Ne4+ {[%emt 0:01:27]} Kd5 {[%emt 0:00:00]} 37. g4 {[%emt 0:01:51]} Rb4 {[%emt 0:00:00]} 38. Nc3+ {[%emt 0:00:13]} Kc4 {[%emt 0:00:00]} 39. Rc2 {[%emt 0:00:17]} Nd4 {[%emt 0:00:00]} 40. Rc1 {[%emt 0:00:45]} Rb3 {[%emt 0:00:00]} 41. Ke4 {[%emt 0:01:10]} Rxc3 {[%emt 0:00:00]} 42. Ra1 {[%emt 0:00:05]} Nb3 {[%emt 0:00:00]} 43. Ra4+ {[%emt 0:00:50]} Kb5 {[%emt 0:00:00]} 44. Ra2 {[%emt 0:00:06]} a4 {[%emt 0:00:00]} 45. g5 {[%emt 0:00:31]} fxg5 {[%emt 0:00:00]} 46. fxg5 {[%emt 0:00:06]} Kb4 {[%emt 0:00:00]} 47. Kf5 {[%emt 0:00:40]} Nc5 {[%emt 0:00:00]} 48. g6 {[%emt 0:00:12]} hxg6+ {[%emt 0:00:00]} 49. Kxg6 {[%emt 0:00:07]} Kb3 {[%emt 0:00:00]} 50. Re2 {[%emt 0:00:28]} a3 {[%emt 0:00:00]} 51. Re8 {[%emt 0:00:28]} a2 {[%emt 0:00:00]} 52. Rb8+ {[%emt 0:00:04]} Ka3 {[%emt 0:00:00]} 53. Ra8+ {[%emt 0:00:09]} Na4 {[%emt 0:00:00]} 0-1

[Event "34th MPL National U14G-ch 2022"]
[Site "Ahmedabad"]
[Date "2022.05.09"]
[Round "2.1"]
[White "Ananya Raman"]
[Black "Mrittika Mallick"]
[Result "0-1"]
[ECO "B90"]
[WhiteElo "1305"]
[BlackElo "1982"]
[Annotator "TA"]
[PlyCount "108"]
[EventDate "2022.05.09"]
[EventType "swiss"]
[EventCountry "IND"]
[SourceTitle "playchess.com"]
[Source "ChessBase"]
[SourceQuality "1"]
[TimeControl "5400+30"]

{[%evp 14,108,30,16,94,109,119,113,115,99,229,89,173,59,138,145,139,85,99,71,55,80,54,74,81,45,43,-5,39,-6,-4,-45,0,0,5,0,29,11,29,0,0,-5,0,-110,0,-130,-131,-207,-204,-217,-198,-192,-195,-414,-372,-393,-293,-286,-279,-270,-287,-432,-421,-448,-427,-412,-347,-380,-380,-356,-325,-29963,-29963,-29963,-29962,-29960,-29961,-29964,-29965,-29965,-29966,-29964,-29962,-29958,-29959,-29946,-29954,-29953,-6044,-5181,-5089,-29964,-29964,-5113,-1725,-12845,-6099]} 1. e4 {[%emt 0:00:25]} c5 {[%emt 0:00:48]} 2. Nf3 {[%emt 0:01:58]} d6 {[%emt 0:00:09]} 3. d4 {[%emt 0:00:07]} cxd4 {[%emt 0:00:07]} 4. Nxd4 {[%emt 0:00:06]} Nf6 {[%emt 0:00:08]} 5. Nc3 {[%emt 0:00:08]} a6 {[%emt 0:00:07]} 6. Be3 {[%emt 0:00:07]} e5 {[%emt 0:00:41]} 7. Nb3 {[%emt 0:00:09]} Be7 {[%emt 0:03:56]} 8. f3 {[%emt 0:00:50]} b5 {[%emt 0:01:38] B90: Sicilian Najdorf: Unusual White 6th moves, 6 Be3 Ng4 and 6 Be3 e5.} (8... Be6 $11) 9. Nd5 $16 {[%emt 0:06:59]} Nbd7 {[%emt 0:03:29]} 10. Nxe7 {[%emt 0:01:33]} Kxe7 {[%emt 0:05:45] [#] White is better.} 11. Qd2 $146 {[%emt 0:06:30]} ({Predecessor:} 11. Rc1 Re8 12. c4 bxc4 13. Bxc4 a5 14. Qd3 a4 15. Nd2 Nc5 16. Qa3 Kf8 17. O-O {1-0 (29) Miras Garcia,E (2507)-Balabanov,V (2452) ICCF email 2013}) 11... Qc7 {[%emt 0:01:20]} (11... Nb6 $16) 12. O-O-O {[%emt 0:04:08]} (12. c4 $18 {and White stays clearly on top.}) 12... Rd8 {[%emt 0:05:48]} (12... Nb6 $16) 13. g4 {[%emt 0:03:42]} (13. Qa5 $1 $18 {[%cal Ra5c7]} Qb8 14. Be2) 13... Nf8 {[%emt 0:02:19]} (13... Nb6 $14) 14. g5 {[%emt 0:02:36]} Nh5 {[%emt 0:00:45]} 15. Qf2 {[%emt 0:14:23]} (15. Qa5 $142 $1 {[%cal Ra5c7]} Qc6 16. Nc5 $1) 15... Rb8 {[%emt 0:04:48]} 16. f4 {[%emt 0:02:37]} Nxf4 {[%emt 0:19:32]} 17. Bxf4 {[%emt 0:00:19]} exf4 {[%emt 0:00:03]} 18. Qxf4 {[%emt 0:00:51]} Ng6 {[%emt 0:01:39] Prevents Qh4.} 19. Qe3 {[%emt 0:03:16]} Kf8 {[%emt 0:00:59]} 20. Nd4 {[%emt 0:03:39]} (20. h4 $14) 20... Kg8 {[%emt 0:02:32]} 21. Nf5 {[%emt 0:05:52]} Be6 {[%emt 0:03:29]} 22. Kb1 {[%emt 0:02:55]} Rbc8 {[%emt 0:01:44]} (22... d5 $15 23. Bd3 dxe4 24. Bxe4 Rxd1+ 25. Rxd1 Bxf5 26. Bxf5 Qxh2) 23. Bd3 $11 {[%emt 0:06:40]} Qc5 {[%emt 0:02:53]} 24. h4 {[%emt 0:06:58]} Qe5 {[%emt 0:03:24]} 25. Qf3 {[%emt 0:03:27] aiming for h5.} Re8 {[%emt 0:07:02]} 26. Qf2 {[%emt 0:07:06]} Nf4 {[%emt 0:03:13]} 27. Rhf1 {[%emt 0:01:56]} Nxd3 {[%emt 0:03:02]} 28. Rxd3 {[%emt 0:00:11] [#]} (28. cxd3 $11 {was the only way to keep the balance.} d5 29. Qf4 Qxf4 30. Rxf4 Bxf5 31. exf5) 28... d5 {[%emt 0:05:33]} (28... Bc4 $1 $17 {Hoping for ...d5.} 29. h5 d5 30. Rxd5 Bxd5 31. exd5 Qxd5) 29. Rdd1 {[%emt 0:03:04]} (29. Re1 $11 {keeps the balance.}) 29... dxe4 $17 {[%emt 0:03:06][%cal Bd5e4,Be4e3][%mdl 32] Black converts the advantage convincingly.} 30. Nd6 {[%emt 0:04:23]} (30. Ne3 $17 {is a better defense.}) 30... e3 $19 {[%emt 0:00:36]} 31. Qe2 {[%emt 0:00:14]} Bc4 {[%emt 0:02:46] Really sharp!} 32. Nxc4 {[%emt 0:03:50]} Rxc4 $40 {[%emt 0:00:48][%mdl 128] Black goes for the king.} ({Stronger than} 32... bxc4 33. Rd7 $17) 33. Rd7 $2 {[%emt 0:01:19]} (33. Qf3 Qe6 34. Rde1) 33... Rf4 {[%emt 0:00:39] ...Rxf1+ is the strong threat.} ({Wrong is} 33... Rb4 $2 34. b3 Rf4 35. Re1 $19) 34. Re1 {[%emt 0:01:42]} Rf2 {[%emt 0:00:58]} ({Don't go for} 34... Rb4 $2 35. b3 g6 36. Rd3 $19) 35. Qd3 {[%emt 0:00:50][%cal Oe1e3]} g6 {[%emt 0:00:50]} 36. a3 {[%emt 0:00:34]} e2 {[%emt 0:00:54]} 37. Rd8 {[%emt 0:01:08]} (37. Rd5 $142 Qc7 38. c3) 37... Rxd8 {[%emt 0:02:37]} 38. Qxd8+ {[%emt 0:00:08][%mdl 4096] Endgame KQR-KQR} Kg7 {[%emt 0:00:05]} 39. Qd3 {[%emt 0:01:31]} h6 {[%emt 0:00:56]} 40. c3 {[%emt 0:00:58]} hxg5 {[%emt 0:00:40]} 41. hxg5 {[%emt 0:00:12]} Qf5 {[%emt 0:00:05]} 42. Qxf5 {[%emt 0:01:21]} (42. Kc2 $19 Qxg5 43. Qe4) 42... gxf5 {[%emt 0:00:19] KR-KR} 43. Kc2 {[%emt 0:00:08]} f4 {[%emt 0:00:05]} 44. Kd2 {[%emt 0:00:42]} f3 {[%emt 0:00:04]} 45. b3 {[%emt 0:00:36]} Rf1 {[%emt 0:00:05]} 46. c4 {[%emt 0:00:12]} bxc4 {[%emt 0:00:11]} 47. bxc4 {[%emt 0:00:06]} f2 {[%emt 0:00:08]} 48. Rxe2 {[%emt 0:00:27] [#]} Rd1+ $1 {[%emt 0:00:03][%mdl 512]} 49. Kxd1 {[%emt 0:00:14]} f1=Q+ {[%emt 0:00:03]} 50. Kd2 {[%emt 0:00:11]} Qf4+ {[%emt 0:00:08]} (50... Qf5 $142 51. Re3 Qxg5 52. Ke2 Qg6 53. a4 Qc2+ 54. Ke1 Qxc4 55. Rg3+ Kf6 56. Rf3+ Ke5 57. a5 Qc5 58. Kf1 Qxa5 59. Rf2 Qa1+ 60. Kg2 Qd4 61. Rf3 f5 62. Rf1 Qe4+ 63. Kh3 Qd3+ 64. Kg2 Qe4+ 65. Kh3 Qg4+ 66. Kh2 Qe2+ 67. Kg1 Qe4 68. Kh2 Qe2+ 69. Kg1 Qe4 70. Kh2 Qe2+) 51. Kd3 {[%emt 0:00:16]} Qxg5 {[%emt 0:00:07] ( -> ...f5)} 52. Kd4 {[%emt 0:00:29]} Qg1+ {[%emt 0:00:47]} 53. Kc3 {[%emt 0:00:46]} Qc5 {[%emt 0:00:06]} 54. Kb3 {[%emt 0:00:19]} f5 {[%emt 0:00:12] Weighted Error Value: White=0.77/Black=0.43} 0-1

[Event "34th MPL National U14G-ch 2022"]
[Site "Ahmedabad"]
[Date "2022.05.09"]
[Round "2.2"]
[White "Sachi Jain"]
[Black "Krishika Garg"]
[Result "1-0"]
[ECO "B18"]
[WhiteElo "1768"]
[BlackElo "1318"]
[Annotator "NA RC COMBH"]
[PlyCount "55"]
[EventDate "2022.05.09"]
[EventType "swiss"]
[EventCountry "IND"]
[SourceTitle "playchess.com"]
[Source "ChessBase"]
[SourceQuality "1"]
[TimeControl "5400+30"]

1. e4 {[%emt 0:00:21]} c6 {[%emt 0:00:06]} 2. d4 {[%emt 0:00:16]} d5 {[%emt 0:00:07]} 3. Nc3 {[%emt 0:00:15]} dxe4 {[%emt 0:00:08]} 4. Nxe4 {[%emt 0:00:09]} Bf5 {[%emt 0:00:06]} 5. Ng3 {[%emt 0:00:32]} Bg6 {[%emt 0:00:07]} 6. Bc4 {[%emt 0:00:44]} e6 {[%emt 0:01:10]} 7. N1e2 {[%emt 0:01:05]} Nf6 {[%emt 0:01:35]} 8. O-O {[%emt 0:00:29]} Bd6 {[%emt 0:00:36]} 9. f4 {[%emt 0:00:52]} Qc7 {[%emt 0:06:59]} 10. f5 {[%emt 0:02:27]} Bxf5 {[%emt 0:06:15]} 11. Nxf5 {[%emt 0:00:18]} exf5 {[%emt 0:00:09]} 12. Rxf5 {[%emt 0:06:05]} Nbd7 {[%emt 0:02:09]} 13. Nf4 {[%emt 0:13:21]} Nb6 {[%emt 0:20:01]} 14. Bb3 {[%emt 0:05:43]} O-O-O {[%emt 0:00:13]} 15. Qf3 {[%emt 0:06:47]} Qe7 {[%emt 0:05:17]} 16. Nd3 {[%emt 0:02:44]} Qc7 {[%emt 0:07:49]} 17. Ne5 {[%emt 0:04:56]} Bxe5 {[%emt 0:00:35]} 18. dxe5 {[%emt 0:00:03]} Nfd5 {[%emt 0:03:59]} 19. Bg5 {[%emt 0:01:56]} Rd7 {[%emt 0:01:22]} 20. e6 {[%emt 0:03:01]} fxe6 {[%emt 0:02:59]} 21. Rf8+ {[%emt 0:00:11]} Rxf8 {[%emt 0:00:12]} 22. Qxf8+ {[%emt 0:00:05]} Rd8 {[%emt 0:00:04]} 23. Bxd8 {[%emt 0:00:07]} Qxd8 {[%emt 0:00:05]} 24. Qxg7 {[%emt 0:00:17]} Qd7 {[%emt 0:03:48]} 25. Qg8+ {[%emt 0:01:40]} Qd8 {[%emt 0:06:27]} 26. Qxe6+ {[%emt 0:00:17]} Qd7 {[%emt 0:02:10]} 27. Qg8+ {[%emt 0:00:07]} Qd8 {[%emt 0:00:18]} 28. Qxh7 {[%emt 0:00:03]} 1-0

[Event "34th MPL National U14G-ch 2022"]
[Site "Ahmedabad"]
[Date "2022.05.09"]
[Round "2.3"]
[White "Anupam M Sreekumar"]
[Black "Shivani Senthilkumar"]
[Result "1-0"]
[ECO "C00"]
[WhiteElo "1673"]
[BlackElo "1303"]
[Annotator "NA RC COMBH"]
[PlyCount "117"]
[EventDate "2022.05.09"]
[EventType "swiss"]
[EventCountry "IND"]
[SourceTitle "playchess.com"]
[Source "ChessBase"]
[SourceQuality "1"]
[TimeControl "5400+30"]

1. e4 {[%emt 0:00:13]} e6 {[%emt 0:00:06]} 2. d3 {[%emt 0:00:24]} d5 {[%emt 0:00:10]} 3. Nd2 {[%emt 0:00:12]} Nf6 {[%emt 0:00:56]} 4. Ngf3 {[%emt 0:00:18]} c5 {[%emt 0:01:20]} 5. g3 {[%emt 0:01:35]} Nc6 {[%emt 0:02:51]} 6. Bg2 {[%emt 0:00:23]} Be7 {[%emt 0:01:50]} 7. O-O {[%emt 0:01:56]} O-O {[%emt 0:05:31]} 8. c3 {[%emt 0:03:23]} b5 {[%emt 0:07:26]} 9. Qc2 {[%emt 0:11:48]} Bb7 {[%emt 0:08:37]} 10. Re1 {[%emt 0:01:06]} Qc7 {[%emt 0:06:04]} 11. Nf1 {[%emt 0:01:29]} dxe4 {[%emt 0:05:07]} 12. dxe4 {[%emt 0:00:32]} Bd6 {[%emt 0:10:30]} 13. Qe2 {[%emt 0:05:54]} Nd7 {[%emt 0:14:23]} 14. Qxb5 {[%emt 0:00:56]} a6 {[%emt 0:09:30]} 15. Qe2 {[%emt 0:01:07]} a5 {[%emt 0:01:08]} 16. Be3 {[%emt 0:01:35]} Ba6 {[%emt 0:00:42]} 17. Qc2 {[%emt 0:00:34]} Rab8 {[%emt 0:02:29]} 18. Rad1 {[%emt 0:00:50]} Nde5 {[%emt 0:01:32]} 19. Nxe5 {[%emt 0:05:11]} Nxe5 {[%emt 0:00:03]} 20. f4 {[%emt 0:00:53]} Nd3 {[%emt 0:01:41]} 21. Rxd3 {[%emt 0:01:46]} Bxd3 {[%emt 0:00:07]} 22. Qxd3 {[%emt 0:00:15]} Rxb2 {[%emt 0:00:54]} 23. Nd2 {[%emt 0:05:01]} Rbb8 {[%emt 0:02:39]} 24. e5 {[%emt 0:04:27]} Be7 {[%emt 0:00:24]} 25. Qc4 {[%emt 0:01:55]} Rfc8 {[%emt 0:05:11]} 26. Ne4 {[%emt 0:01:13]} Qb6 {[%emt 0:04:14]} 27. h3 {[%emt 0:01:14]} g6 {[%emt 0:03:19]} 28. Rd1 {[%emt 0:03:02]} Rd8 {[%emt 0:02:20]} 29. Rxd8+ {[%emt 0:07:00]} Rxd8 {[%emt 0:02:44]} 30. Bxc5 {[%emt 0:01:15]} Bxc5+ {[%emt 0:00:58]} 31. Qxc5 {[%emt 0:00:07]} Rd1+ {[%emt 0:00:32]} 32. Kh2 {[%emt 0:00:15]} Qxc5 {[%emt 0:00:26]} 33. Nxc5 {[%emt 0:00:10]} Rc1 {[%emt 0:00:35]} 34. a4 {[%emt 0:03:00]} Rxc3 {[%emt 0:00:24]} 35. Nb7 {[%emt 0:00:50]} Rc4 {[%emt 0:00:05]} 36. Nxa5 {[%emt 0:00:38]} Rxa4 {[%emt 0:00:02]} 37. Nb7 {[%emt 0:00:42]} Kg7 {[%emt 0:00:45]} 38. Nc5 {[%emt 0:01:03]} Rc4 {[%emt 0:00:36]} 39. Ne4 {[%emt 0:00:10]} Rc1 {[%emt 0:00:49]} 40. g4 {[%emt 0:00:36]} h6 {[%emt 0:00:30]} 41. Kg3 {[%emt 0:01:08]} Ra1 {[%emt 0:00:29]} 42. Nd6 {[%emt 0:35:24]} Ra3+ {[%emt 0:00:38]} 43. Bf3 {[%emt 0:00:00]} Ra2 {[%emt 0:00:27]} 44. f5 {[%emt 0:00:00]} gxf5 {[%emt 0:00:42]} 45. gxf5 {[%emt 0:00:00]} exf5 {[%emt 0:00:31]} 46. Nxf5+ {[%emt 0:00:00]} Kh7 {[%emt 0:00:27]} 47. Be4 {[%emt 0:00:00]} Ra3+ {[%emt 0:00:21]} 48. Kg4 {[%emt 0:00:00]} Ra4 {[%emt 0:00:40]} 49. Nd6+ {[%emt 0:00:00]} Kg7 {[%emt 0:00:02]} 50. Kf5 {[%emt 0:00:00]} Ra1 {[%emt 0:00:48]} 51. Bd5 {[%emt 0:00:00]} Rf1+ {[%emt 0:00:21]} 52. Kg4 {[%emt 0:00:00]} Rg1+ {[%emt 0:00:56]} 53. Kf3 {[%emt 0:00:00]} Rd1 {[%emt 0:00:29]} 54. Bxf7 {[%emt 0:00:00]} Rd3+ {[%emt 0:00:21]} 55. Kg4 {[%emt 0:00:00]} Kf8 {[%emt 0:00:31]} 56. Bc4 {[%emt 0:00:00]} Re3 {[%emt 0:00:35]} 57. e6 {[%emt 0:00:00]} Rc3 {[%emt 0:00:23]} 58. Kf4 {[%emt 0:00:00]} Rxh3 {[%emt 0:00:21]} 59. Nf5 {[%emt 0:00:00]} 1-0

[Event "34th MPL National U14G-ch 2022"]
[Site "Ahmedabad"]
[Date "2022.05.09"]
[Round "2.4"]
[White "Siyona Judith C"]
[Black "Shubhi Gupta"]
[Result "0-1"]
[ECO "D37"]
[WhiteElo "1300"]
[BlackElo "1613"]
[Annotator "NA RC COMBH"]
[PlyCount "110"]
[EventDate "2022.05.09"]
[EventType "swiss"]
[EventCountry "IND"]
[SourceTitle "playchess.com"]
[Source "ChessBase"]
[SourceQuality "1"]
[TimeControl "5400+30"]

1. d4 {[%emt 0:00:44]} d5 {[%emt 0:01:51]} 2. c4 {[%emt 0:00:14]} e6 {[%emt 0:00:20]} 3. Nf3 {[%emt 0:00:12]} Nf6 {[%emt 0:00:08]} 4. e3 {[%emt 0:01:15]} Be7 {[%emt 0:00:46]} 5. Nc3 {[%emt 0:00:26]} O-O {[%emt 0:01:29]} 6. Bd2 {[%emt 0:00:19]} c5 {[%emt 0:00:59]} 7. Bd3 {[%emt 0:02:05]} Nc6 {[%emt 0:01:06]} 8. cxd5 {[%emt 0:00:57]} exd5 {[%emt 0:00:24]} 9. O-O {[%emt 0:02:17]} Bg4 {[%emt 0:02:26]} 10. dxc5 {[%emt 0:10:09]} Bxc5 {[%emt 0:01:32]} 11. Na4 {[%emt 0:01:31]} Bd6 {[%emt 0:01:26]} 12. Be2 {[%emt 0:03:28]} Ne4 {[%emt 0:01:41]} 13. Nc3 {[%emt 0:01:42]} Bxf3 {[%emt 0:02:02]} 14. Bxf3 {[%emt 0:00:20]} Nxd2 {[%emt 0:00:40]} 15. Qxd2 {[%emt 0:00:06]} d4 {[%emt 0:01:09]} 16. Nb5 {[%emt 0:01:56]} Bb4 {[%emt 0:00:43]} 17. Qd3 {[%emt 0:01:42]} dxe3 {[%emt 0:00:51]} 18. Qxe3 {[%emt 0:01:17]} Re8 {[%emt 0:00:45]} 19. Qf4 {[%emt 0:01:57]} Qe7 {[%emt 0:03:02]} 20. a3 {[%emt 0:01:17]} Ba5 {[%emt 0:00:27]} 21. b4 {[%emt 0:05:25]} Bb6 {[%emt 0:01:13]} 22. Rad1 {[%emt 0:04:30]} a6 {[%emt 0:02:21]} 23. Nd6 {[%emt 0:00:16]} Bc7 {[%emt 0:02:26]} 24. Qd2 {[%emt 0:03:21]} Red8 {[%emt 0:00:56]} 25. Nf5 {[%emt 0:01:44]} Qe5 {[%emt 0:00:41]} 26. Nh6+ {[%emt 0:06:08]} gxh6 {[%emt 0:00:55]} 27. Qxh6 {[%emt 0:00:10]} Rxd1 {[%emt 0:01:48]} 28. Rxd1 {[%emt 0:00:43]} Qf4 {[%emt 0:01:26]} 29. Qh5 {[%emt 0:00:54]} Rd8 {[%emt 0:02:55]} 30. Re1 {[%emt 0:00:28]} Ne5 {[%emt 0:00:40]} 31. Be4 {[%emt 0:01:13]} Ng6 {[%emt 0:00:53]} 32. g3 {[%emt 0:01:35]} Qd2 {[%emt 0:00:55]} 33. Rf1 {[%emt 0:01:43]} b5 {[%emt 0:06:01]} 34. Qc5 {[%emt 0:02:46]} Qd6 {[%emt 0:00:57]} 35. Qc2 {[%emt 0:01:59]} Bb6 {[%emt 0:02:47]} 36. Qb1 {[%emt 0:04:51]} Qf6 {[%emt 0:01:53]} 37. Qc2 {[%emt 0:01:48]} Re8 {[%emt 0:02:02]} 38. Bd3 {[%emt 0:02:23]} Kg7 {[%emt 0:01:35]} 39. a4 {[%emt 0:02:35]} Ne5 {[%emt 0:01:13]} 40. Be2 {[%emt 0:02:56]} Nf3+ {[%emt 0:01:42]} 41. Bxf3 {[%emt 0:01:03]} Qxf3 {[%emt 0:00:03]} 42. Qb2+ {[%emt 0:02:38]} Qf6 {[%emt 0:01:10]} 43. Qc2 {[%emt 0:00:13]} Re5 {[%emt 0:00:54]} 44. a5 {[%emt 0:02:26]} Ba7 {[%emt 0:01:04]} 45. Qd1 {[%emt 0:01:03]} Rf5 {[%emt 0:00:59]} 46. Qg4+ {[%emt 0:00:59]} Kf8 {[%emt 0:00:20]} 47. Qe2 {[%emt 0:00:34]} Qe6 {[%emt 0:01:13]} 48. Qd2 {[%emt 0:00:51]} Rh5 {[%emt 0:03:09]} 49. Qd8+ {[%emt 0:04:03]} Kg7 {[%emt 0:01:08]} 50. h4 {[%emt 0:00:04]} Rf5 {[%emt 0:00:37]} 51. Qd1 {[%emt 0:01:29]} Qg6 {[%emt 0:00:32]} 52. Qa1+ {[%emt 0:00:31]} Kg8 {[%emt 0:00:49]} 53. Qc3 {[%emt 0:00:15]} Qg4 {[%emt 0:00:42]} 54. Qc8+ {[%emt 0:01:01]} Kg7 {[%emt 0:00:05]} 55. Qc3+ {[%emt 0:00:03]} Bd4 {[%emt 0:00:09]} 0-1

[Event "34th MPL National U14G-ch 2022"]
[Site "Ahmedabad"]
[Date "2022.05.09"]
[Round "2.5"]
[White "Pragnya H G"]
[Black "Nivedita V C"]
[Result "1/2-1/2"]
[ECO "C54"]
[WhiteElo "1605"]
[BlackElo "1296"]
[Annotator "NA RC COMBH"]
[PlyCount "93"]
[EventDate "2022.05.09"]
[EventType "swiss"]
[EventCountry "IND"]
[SourceTitle "playchess.com"]
[Source "ChessBase"]
[SourceQuality "1"]
[TimeControl "5400+30"]

1. e4 {[%emt 0:00:35]} e5 {[%emt 0:01:40]} 2. Nf3 {[%emt 0:00:11]} Nc6 {[%emt 0:00:06]} 3. Bc4 {[%emt 0:00:04]} Bc5 {[%emt 0:00:05]} 4. c3 {[%emt 0:00:04]} Qe7 {[%emt 0:00:06]} 5. O-O {[%emt 0:00:46]} Nf6 {[%emt 0:00:05]} 6. d3 {[%emt 0:00:42]} d6 {[%emt 0:00:45]} 7. Bb3 {[%emt 0:00:17]} Be6 {[%emt 0:00:53]} 8. Bc2 {[%emt 0:00:11]} d5 {[%emt 0:04:23]} 9. exd5 {[%emt 0:02:22]} Bxd5 {[%emt 0:01:28]} 10. Re1 {[%emt 0:01:11]} O-O {[%emt 0:06:58]} 11. d4 {[%emt 0:03:08]} Bxf3 {[%emt 0:06:02]} 12. Qxf3 {[%emt 0:00:07]} Bd6 {[%emt 0:02:03]} 13. Bg5 {[%emt 0:02:43]} h6 {[%emt 0:01:02]} 14. Bh4 {[%emt 0:00:38]} Rae8 {[%emt 0:05:50]} 15. Nd2 {[%emt 0:02:43]} g5 {[%emt 0:03:25]} 16. Bg3 {[%emt 0:00:27]} Qd8 {[%emt 0:02:13]} 17. Qf5 {[%emt 0:06:53]} Re6 {[%emt 0:07:33]} 18. Bb3 {[%emt 0:06:24]} Ne7 {[%emt 0:04:49]} 19. Qc2 {[%emt 0:01:58]} Nfd5 {[%emt 0:01:04]} 20. dxe5 {[%emt 0:00:27]} Bc5 {[%emt 0:01:01]} 21. Ne4 {[%emt 0:00:17]} Bb6 {[%emt 0:00:50]} 22. Rad1 {[%emt 0:00:14]} c6 {[%emt 0:03:29]} 23. c4 {[%emt 0:00:27]} Nb4 {[%emt 0:00:14]} 24. Rxd8 {[%emt 0:00:47]} Nxc2 {[%emt 0:00:14]} 25. Rxf8+ {[%emt 0:00:06]} Kxf8 {[%emt 0:00:11]} 26. Bxc2 {[%emt 0:00:05]} Ng6 {[%emt 0:00:47]} 27. Nd6 {[%emt 0:01:01]} Bc7 {[%emt 0:00:34]} 28. Bf5 {[%emt 0:00:28]} Re7 {[%emt 0:00:09]} 29. Bxg6 {[%emt 0:00:58]} Bxd6 {[%emt 0:00:13]} 30. f4 {[%emt 0:01:28]} Bb4 {[%emt 0:01:57]} 31. Bf5 {[%emt 0:00:30]} gxf4 {[%emt 0:01:10]} 32. Re2 {[%emt 0:02:05]} fxg3 {[%emt 0:00:14]} 33. hxg3 {[%emt 0:00:06]} Bd6 {[%emt 0:01:02]} 34. Kf2 {[%emt 0:01:08]} Bxe5 {[%emt 0:00:28]} 35. b3 {[%emt 0:00:05]} Bxg3+ {[%emt 0:00:14]} 36. Kf3 {[%emt 0:00:10]} Rxe2 {[%emt 0:00:16]} 37. Kxe2 {[%emt 0:00:03]} Ke7 {[%emt 0:00:55]} 38. c5 {[%emt 0:01:16]} Kf6 {[%emt 0:03:03]} 39. Bc8 {[%emt 0:01:10]} b6 {[%emt 0:00:22]} 40. cxb6 {[%emt 0:00:12]} axb6 {[%emt 0:00:07]} 41. Bb7 {[%emt 0:00:07]} c5 {[%emt 0:00:01]} 42. Kd3 {[%emt 0:00:24]} b5 {[%emt 0:00:43]} 43. a4 {[%emt 0:00:39]} c4+ {[%emt 0:00:38]} 44. Kc2 {[%emt 0:01:25]} cxb3+ {[%emt 0:00:09]} 45. Kxb3 {[%emt 0:00:03]} bxa4+ {[%emt 0:00:09]} 46. Kxa4 {[%emt 0:00:04]} Ke5 {[%emt 0:00:17]} 47. Kb3 {[%emt 0:00:15]} 1/2-1/2